{"text_format":"3","workbook":"xlsx","n_sheets":1,"sheets":["Ngân sách cá nhân hàng tháng"],"read":"whole","date_system":"1900"}

{"sheet":"Ngân sách cá nhân hàng tháng","index":0,"n_rows":64,"n_cols":10,"rows_kept":64,"merged":[[1,1,1,9],[2,1,2,9],[4,1,6,1],[4,2,4,3],[4,6,5,8],[4,9,5,9],[5,2,5,3],[6,2,6,3],[6,6,7,8],[6,9,7,9],[7,1,9,1],[7,2,7,3],[8,2,8,3],[8,6,9,8],[8,9,9,9],[9,2,9,3],[22,6,22,9],[23,1,23,4],[31,6,31,9],[33,1,33,4],[38,6,38,9],[40,1,40,4],[44,6,44,9],[46,1,46,4],[50,6,50,9],[54,1,54,4],[57,6,57,9],[58,6,59,8],[58,9,59,9],[60,6,61,8],[60,9,61,9],[62,6,63,8],[62,9,63,9]]}
[]
[null,"Ngân sách cá nhân hàng tháng"]
[]
[]
[null,"THU NHẬP HÀNG THÁNG DỰ KIẾN","Thu nhập 1",null,{"v":2500,"d":"2,500 ₫"},null,"SỐ DƯ DỰ KIẾN (Thu nhập dự kiến trừ đi chi phí)",null,null,{"$f":"E7-J59","v":{"v":940,"d":"940 ₫"}}]
[null,null,"Thu nhập thêm",null,{"v":500,"d":"500 ₫"}]
[null,null,"Tổng thu nhập hàng tháng",null,{"$f":"SUM(E5:E6)","v":{"v":3000,"d":"3,000 ₫"}},null,"SỐ DƯ THỰC TẾ (Thu nhập thực tế trừ đi chi phí)",null,null,{"$f":"E10-J61","v":{"v":960,"d":"960 ₫"}}]
[null,"THU NHẬP HÀNG THÁNG THỰC TẾ","Thu nhập 1",null,{"v":2500,"d":"2,500 ₫"}]
[null,null,"Thu nhập thêm",null,{"v":500,"d":"500 ₫"},null,"KHOẢN CHÊNH LỆCH (Số dư thực tế trừ đi số dư dự kiến)",null,null,{"$f":"J7-J5","v":{"v":20,"d":"20 ₫"}}]
[null,null,"Tổng thu nhập hàng tháng",null,{"$f":"SUM(E8:E9)","v":{"v":3000,"d":"3,000 ₫"}}]
[]
[null,"NHÀ Ở","Chi phí theo kế hoạch","Chi phí Thực tế","Chênh lệch",null,"GIẢI TRÍ","Chi phí theo kế hoạch","Chi phí Thực tế","Chênh lệch"]
[null,"Tiền thế chấp hoặc tiền thuê",{"v":1500,"d":"1,500 ₫"},{"v":1400,"d":"1,400 ₫"},{"$f":"Bảng1[[#This Row],[Chi phí theo kế hoạch]]-Bảng1[[#This Row],[Chi phí Thực tế]]","v":{"v":100,"d":"100 ₫"}},null,"Video/DVD",{"v":0,"d":"0 ₫"},{"v":50,"d":"50 ₫"},{"$f":"Bảng2[[#This Row],[Chi phí theo kế hoạch]]-Bảng2[[#This Row],[Chi phí Thực tế]]","v":{"v":-50,"d":"-50 ₫"}}]
[null,"Điện thoại",{"v":60,"d":"60 ₫"},{"v":100,"d":"100 ₫"},{"$f":"Bảng1[[#This Row],[Chi phí theo kế hoạch]]-Bảng1[[#This Row],[Chi phí Thực tế]]","v":{"v":-40,"d":"-40 ₫"}},null,"CD",null,null,{"$f":"Bảng2[[#This Row],[Chi phí theo kế hoạch]]-Bảng2[[#This Row],[Chi phí Thực tế]]","v":{"v":0,"d":"0 ₫"}}]
[null,"Điện",{"v":50,"d":"50 ₫"},{"v":60,"d":"60 ₫"},{"$f":"Bảng1[[#This Row],[Chi phí theo kế hoạch]]-Bảng1[[#This Row],[Chi phí Thực tế]]","v":{"v":-10,"d":"-10 ₫"}},null,"Phim",null,null,{"$f":"Bảng2[[#This Row],[Chi phí theo kế hoạch]]-Bảng2[[#This Row],[Chi phí Thực tế]]","v":{"v":0,"d":"0 ₫"}}]
[null,"Khí đốt",{"v":200,"d":"200 ₫"},{"v":180,"d":"180 ₫"},{"$f":"Bảng1[[#This Row],[Chi phí theo kế hoạch]]-Bảng1[[#This Row],[Chi phí Thực tế]]","v":{"v":20,"d":"20 ₫"}},null,"Buổi hòa nhạc",null,null,{"$f":"Bảng2[[#This Row],[Chi phí theo kế hoạch]]-Bảng2[[#This Row],[Chi phí Thực tế]]","v":{"v":0,"d":"0 ₫"}}]
[null,"Nước và nước thải",null,null,{"$f":"Bảng1[[#This Row],[Chi phí theo kế hoạch]]-Bảng1[[#This Row],[Chi phí Thực tế]]","v":{"v":0,"d":"0 ₫"}},null,"Sự kiện thể thao",null,null,{"$f":"Bảng2[[#This Row],[Chi phí theo kế hoạch]]-Bảng2[[#This Row],[Chi phí Thực tế]]","v":{"v":0,"d":"0 ₫"}}]
[null,"Cáp",null,null,{"$f":"Bảng1[[#This Row],[Chi phí theo kế hoạch]]-Bảng1[[#This Row],[Chi phí Thực tế]]","v":{"v":0,"d":"0 ₫"}},null,"Nhà hát",null,null,{"$f":"Bảng2[[#This Row],[Chi phí theo kế hoạch]]-Bảng2[[#This Row],[Chi phí Thực tế]]","v":{"v":0,"d":"0 ₫"}}]
[null,"Loại bỏ rác thải",null,null,{"$f":"Bảng1[[#This Row],[Chi phí theo kế hoạch]]-Bảng1[[#This Row],[Chi phí Thực tế]]","v":{"v":0,"d":"0 ₫"}},null,"Khác",null,null,{"$f":"Bảng2[[#This Row],[Chi phí theo kế hoạch]]-Bảng2[[#This Row],[Chi phí Thực tế]]","v":{"v":0,"d":"0 ₫"}}]
[null,"Bảo trì hoặc sửa chữa",null,null,{"$f":"Bảng1[[#This Row],[Chi phí theo kế hoạch]]-Bảng1[[#This Row],[Chi phí Thực tế]]","v":{"v":0,"d":"0 ₫"}},null,"Khác",null,null,{"$f":"Bảng2[[#This Row],[Chi phí theo kế hoạch]]-Bảng2[[#This Row],[Chi phí Thực tế]]","v":{"v":0,"d":"0 ₫"}}]
[null,"Nhu yếu phẩm",null,null,{"$f":"Bảng1[[#This Row],[Chi phí theo kế hoạch]]-Bảng1[[#This Row],[Chi phí Thực tế]]","v":{"v":0,"d":"0 ₫"}},null,"Khác",null,null,{"$f":"Bảng2[[#This Row],[Chi phí theo kế hoạch]]-Bảng2[[#This Row],[Chi phí Thực tế]]","v":{"v":0,"d":"0 ₫"}}]
[null,"Khác",null,null,{"$f":"Bảng1[[#This Row],[Chi phí theo kế hoạch]]-Bảng1[[#This Row],[Chi phí Thực tế]]","v":{"v":0,"d":"0 ₫"}},null,"Tổng",{"$f":"SUBTOTAL(109,Bảng2[Chi phí theo kế hoạch])","v":{"v":0,"d":"0 ₫"}},{"$f":"SUBTOTAL(109,Bảng2[Chi phí Thực tế])","v":{"v":50,"d":"50 ₫"}},{"$f":"SUBTOTAL(109,Bảng2[Chênh lệch])","v":{"v":-50,"d":"-50 ₫"}}]
[null,"Tổng",{"$f":"SUBTOTAL(109,Bảng1[Chi phí theo kế hoạch])","v":{"v":1810,"d":"1,810 ₫"}},{"$f":"SUBTOTAL(109,Bảng1[Chi phí Thực tế])","v":{"v":1740,"d":"1,740 ₫"}},{"$f":"SUBTOTAL(109,Bảng1[Chênh lệch])","v":{"v":70,"d":"70 ₫"}}]
[{"$nulls":6},"KHOẢN VAY","Chi phí Theo kế hoạch","Chi phí Thực tế","Chênh lệch"]
[null,"ĐI LẠI","Chi phí Theo kế hoạch","Chi phí Thực tế","Chênh lệch",null,"Cá nhân",null,null,{"$f":"Bảng8[[#This Row],[Chi phí Theo kế hoạch]]-Bảng8[[#This Row],[Chi phí Thực tế]]","v":{"v":0,"d":"0 ₫"}}]
[null,"Thanh toán phương tiện đi lại",{"v":250,"d":"250 ₫"},{"v":250,"d":"250 ₫"},{"$f":"Bảng3[[#This Row],[Chi phí Theo kế hoạch]]-Bảng3[[#This Row],[Chi phí Thực tế]]","v":{"v":0,"d":"0 ₫"}},null,"Học viên",null,null,{"$f":"Bảng8[[#This Row],[Chi phí Theo kế hoạch]]-Bảng8[[#This Row],[Chi phí Thực tế]]","v":{"v":0,"d":"0 ₫"}}]
[null,"Tiền đi xe buýt/taxi",null,null,{"$f":"Bảng3[[#This Row],[Chi phí Theo kế hoạch]]-Bảng3[[#This Row],[Chi phí Thực tế]]","v":{"v":0,"d":"0 ₫"}},null,"Thẻ tín dụng",null,null,{"$f":"Bảng8[[#This Row],[Chi phí Theo kế hoạch]]-Bảng8[[#This Row],[Chi phí Thực tế]]","v":{"v":0,"d":"0 ₫"}}]
[null,"Bảo hiểm",null,null,{"$f":"Bảng3[[#This Row],[Chi phí Theo kế hoạch]]-Bảng3[[#This Row],[Chi phí Thực tế]]","v":{"v":0,"d":"0 ₫"}},null,"Thẻ tín dụng",null,null,{"$f":"Bảng8[[#This Row],[Chi phí Theo kế hoạch]]-Bảng8[[#This Row],[Chi phí Thực tế]]","v":{"v":0,"d":"0 ₫"}}]
[null,"Cấp phép",null,null,{"$f":"Bảng3[[#This Row],[Chi phí Theo kế hoạch]]-Bảng3[[#This Row],[Chi phí Thực tế]]","v":{"v":0,"d":"0 ₫"}},null,"Thẻ tín dụng",null,null,{"$f":"Bảng8[[#This Row],[Chi phí Theo kế hoạch]]-Bảng8[[#This Row],[Chi phí Thực tế]]","v":{"v":0,"d":"0 ₫"}}]
[null,"Nhiên liệu",null,null,{"$f":"Bảng3[[#This Row],[Chi phí Theo kế hoạch]]-Bảng3[[#This Row],[Chi phí Thực tế]]","v":{"v":0,"d":"0 ₫"}},null,"Khác",null,null,{"$f":"Bảng8[[#This Row],[Chi phí Theo kế hoạch]]-Bảng8[[#This Row],[Chi phí Thực tế]]","v":{"v":0,"d":"0 ₫"}}]
[null,"Bảo trì",null,null,{"$f":"Bảng3[[#This Row],[Chi phí Theo kế hoạch]]-Bảng3[[#This Row],[Chi phí Thực tế]]","v":{"v":0,"d":"0 ₫"}},null,"Tổng",{"$f":"SUBTOTAL(109,Bảng8[Chi phí Theo kế hoạch])","v":{"v":0,"d":"0 ₫"}},{"$f":"SUBTOTAL(109,Bảng8[Chi phí Thực tế])","v":{"v":0,"d":"0 ₫"}},{"$f":"SUBTOTAL(109,Bảng8[Chênh lệch])","v":{"v":0,"d":"0 ₫"}}]
[null,"Khác",null,null,{"$f":"Bảng3[[#This Row],[Chi phí Theo kế hoạch]]-Bảng3[[#This Row],[Chi phí Thực tế]]","v":{"v":0,"d":"0 ₫"}}]
[null,"Tổng",{"$f":"SUBTOTAL(109,Bảng3[Chi phí Theo kế hoạch])","v":{"v":250,"d":"250 ₫"}},{"$f":"SUBTOTAL(109,Bảng3[Chi phí Thực tế])","v":{"v":250,"d":"250 ₫"}},{"$f":"SUBTOTAL(109,Bảng3[Chênh lệch])","v":{"v":0,"d":"0 ₫"}},null,"THUẾ","Chi phí Theo kế hoạch","Chi phí Thực tế","Chênh lệch"]
[{"$nulls":6},"Liên bang",null,null,{"$f":"Bảng9[[#This Row],[Chi phí Theo kế hoạch]]-Bảng9[[#This Row],[Chi phí Thực tế]]","v":{"v":0,"d":"0 ₫"}}]
[null,"BẢO HIỂM","Chi phí Theo kế hoạch","Chi phí Thực tế","Chênh lệch",null,"Tiểu bang",null,null,{"$f":"Bảng9[[#This Row],[Chi phí Theo kế hoạch]]-Bảng9[[#This Row],[Chi phí Thực tế]]","v":{"v":0,"d":"0 ₫"}}]
[null,"Nhà ở",null,null,{"$f":"Bảng4[[#This Row],[Chi phí Theo kế hoạch]]-Bảng4[[#This Row],[Chi phí Thực tế]]","v":{"v":0,"d":"0 ₫"}},null,"Địa phương",null,null,{"$f":"Bảng9[[#This Row],[Chi phí Theo kế hoạch]]-Bảng9[[#This Row],[Chi phí Thực tế]]","v":{"v":0,"d":"0 ₫"}}]
[null,"Sức khỏe",null,null,{"$f":"Bảng4[[#This Row],[Chi phí Theo kế hoạch]]-Bảng4[[#This Row],[Chi phí Thực tế]]","v":{"v":0,"d":"0 ₫"}},null,"Khác",null,null,{"$f":"Bảng9[[#This Row],[Chi phí Theo kế hoạch]]-Bảng9[[#This Row],[Chi phí Thực tế]]","v":{"v":0,"d":"0 ₫"}}]
[null,"Đời sống",null,null,{"$f":"Bảng4[[#This Row],[Chi phí Theo kế hoạch]]-Bảng4[[#This Row],[Chi phí Thực tế]]","v":{"v":0,"d":"0 ₫"}},null,"Tổng",{"$f":"SUBTOTAL(109,Bảng9[Chi phí Theo kế hoạch])","v":{"v":0,"d":"0 ₫"}},{"$f":"SUBTOTAL(109,Bảng9[Chi phí Thực tế])","v":{"v":0,"d":"0 ₫"}},{"$f":"SUBTOTAL(109,Bảng9[Chênh lệch])","v":{"v":0,"d":"0 ₫"}}]
[null,"Khác",null,null,{"$f":"Bảng4[[#This Row],[Chi phí Theo kế hoạch]]-Bảng4[[#This Row],[Chi phí Thực tế]]","v":{"v":0,"d":"0 ₫"}}]
[null,"Tổng",{"$f":"SUBTOTAL(109,Bảng4[Chi phí Theo kế hoạch])","v":{"v":0,"d":"0 ₫"}},{"$f":"SUBTOTAL(109,Bảng4[Chi phí Thực tế])","v":{"v":0,"d":"0 ₫"}},{"$f":"SUBTOTAL(109,Bảng4[Chênh lệch])","v":{"v":0,"d":"0 ₫"}},null,"TIẾT KIỆM HOẶC ĐẦU TƯ","Chi phí Theo kế hoạch","Chi phí Thực tế","Chênh lệch"]
[{"$nulls":6},"Tài khoản hưu trí",null,null,{"$f":"Bảng10[[#This Row],[Chi phí Theo kế hoạch]]-Bảng10[[#This Row],[Chi phí Thực tế]]","v":{"v":0,"d":"0 ₫"}}]
[null,"ĂN UỐNG","Chi phí Theo kế hoạch","Chi phí Thực tế","Chênh lệch",null,"Tài khoản đầu tư",null,null,{"$f":"Bảng10[[#This Row],[Chi phí Theo kế hoạch]]-Bảng10[[#This Row],[Chi phí Thực tế]]","v":{"v":0,"d":"0 ₫"}}]
[null,"Tạp phẩm",null,null,{"$f":"Bảng5[[#This Row],[Chi phí Theo kế hoạch]]-Bảng5[[#This Row],[Chi phí Thực tế]]","v":{"v":0,"d":"0 ₫"}},null,"Khác",null,null,{"$f":"Bảng10[[#This Row],[Chi phí Theo kế hoạch]]-Bảng10[[#This Row],[Chi phí Thực tế]]","v":{"v":0,"d":"0 ₫"}}]
[null,"Ăn ngoài",null,null,{"$f":"Bảng5[[#This Row],[Chi phí Theo kế hoạch]]-Bảng5[[#This Row],[Chi phí Thực tế]]","v":{"v":0,"d":"0 ₫"}},null,"Tổng",{"$f":"SUBTOTAL(109,Bảng10[Chi phí Theo kế hoạch])","v":{"v":0,"d":"0 ₫"}},{"$f":"SUBTOTAL(109,Bảng10[Chi phí Thực tế])","v":{"v":0,"d":"0 ₫"}},{"$f":"SUBTOTAL(109,Bảng10[Chênh lệch])","v":{"v":0,"d":"0 ₫"}}]
[null,"Khác",null,null,{"$f":"Bảng5[[#This Row],[Chi phí Theo kế hoạch]]-Bảng5[[#This Row],[Chi phí Thực tế]]","v":{"v":0,"d":"0 ₫"}}]
[null,"Tổng",{"$f":"SUBTOTAL(109,Bảng5[Chi phí Theo kế hoạch])","v":{"v":0,"d":"0 ₫"}},{"$f":"SUBTOTAL(109,Bảng5[Chi phí Thực tế])","v":{"v":0,"d":"0 ₫"}},{"$f":"SUBTOTAL(109,Bảng5[Chênh lệch])","v":{"v":0,"d":"0 ₫"}},null,"QUÀ TẶNG VÀ KHOẢN QUYÊN GÓP","Chi phí Theo kế hoạch","Chi phí Thực tế","Chênh lệch"]
[{"$nulls":6},"Khoản từ thiện 1",null,null,{"$f":"Bảng11[[#This Row],[Chi phí Theo kế hoạch]]-Bảng11[[#This Row],[Chi phí Thực tế]]","v":{"v":0,"d":"0 ₫"}}]
[null,"VẬT NUÔI","Chi phí Theo kế hoạch","Chi phí Thực tế","Chênh lệch",null,"Khoản từ thiện 2",null,null,{"$f":"Bảng11[[#This Row],[Chi phí Theo kế hoạch]]-Bảng11[[#This Row],[Chi phí Thực tế]]","v":{"v":0,"d":"0 ₫"}}]
[null,"Thực phẩm",null,null,{"$f":"Bảng6[[#This Row],[Chi phí Theo kế hoạch]]-Bảng6[[#This Row],[Chi phí Thực tế]]","v":{"v":0,"d":"0 ₫"}},null,"Khoản từ thiện 3",null,null,{"$f":"Bảng11[[#This Row],[Chi phí Theo kế hoạch]]-Bảng11[[#This Row],[Chi phí Thực tế]]","v":{"v":0,"d":"0 ₫"}}]
[null,"Y tế",null,null,{"$f":"Bảng6[[#This Row],[Chi phí Theo kế hoạch]]-Bảng6[[#This Row],[Chi phí Thực tế]]","v":{"v":0,"d":"0 ₫"}},null,"Tổng",{"$f":"SUBTOTAL(109,Bảng11[Chi phí Theo kế hoạch])","v":{"v":0,"d":"0 ₫"}},{"$f":"SUBTOTAL(109,Bảng11[Chi phí Thực tế])","v":{"v":0,"d":"0 ₫"}},{"$f":"SUBTOTAL(109,Bảng11[Chênh lệch])","v":{"v":0,"d":"0 ₫"}}]
[null,"Chăm sóc vật nuôi",null,null,{"$f":"Bảng6[[#This Row],[Chi phí Theo kế hoạch]]-Bảng6[[#This Row],[Chi phí Thực tế]]","v":{"v":0,"d":"0 ₫"}}]
[null,"Đồ chơi",null,null,{"$f":"Bảng6[[#This Row],[Chi phí Theo kế hoạch]]-Bảng6[[#This Row],[Chi phí Thực tế]]","v":{"v":0,"d":"0 ₫"}},null,"PHÁP LÝ","Chi phí Theo kế hoạch","Chi phí Thực tế","Chênh lệch"]
[null,"Khác",null,null,{"$f":"Bảng6[[#This Row],[Chi phí Theo kế hoạch]]-Bảng6[[#This Row],[Chi phí Thực tế]]","v":{"v":0,"d":"0 ₫"}},null,"Luật sư",null,null,{"$f":"Bảng12[[#This Row],[Chi phí Theo kế hoạch]]-Bảng12[[#This Row],[Chi phí Thực tế]]","v":{"v":0,"d":"0 ₫"}}]
[null,"Tổng",{"$f":"SUBTOTAL(109,Bảng6[Chi phí Theo kế hoạch])","v":{"v":0,"d":"0 ₫"}},{"$f":"SUBTOTAL(109,Bảng6[Chi phí Thực tế])","v":{"v":0,"d":"0 ₫"}},{"$f":"SUBTOTAL(109,Bảng6[Chênh lệch])","v":{"v":0,"d":"0 ₫"}},null,"Tiền cấp dưỡng",null,null,{"$f":"Bảng12[[#This Row],[Chi phí Theo kế hoạch]]-Bảng12[[#This Row],[Chi phí Thực tế]]","v":{"v":0,"d":"0 ₫"}}]
[{"$nulls":6},"Khoản thanh toán khi giữ vật thế chấp hoặc theo phán quyết",null,null,{"$f":"Bảng12[[#This Row],[Chi phí Theo kế hoạch]]-Bảng12[[#This Row],[Chi phí Thực tế]]","v":{"v":0,"d":"0 ₫"}}]
[null,"CHĂM SÓC CÁ NHÂN","Chi phí Theo kế hoạch","Chi phí Thực tế","Chênh lệch",null,"Khác",null,null,{"$f":"Bảng12[[#This Row],[Chi phí Theo kế hoạch]]-Bảng12[[#This Row],[Chi phí Thực tế]]","v":{"v":0,"d":"0 ₫"}}]
[null,"Y tế",null,null,{"$f":"Bảng7[[#This Row],[Chi phí Theo kế hoạch]]-Bảng7[[#This Row],[Chi phí Thực tế]]","v":{"v":0,"d":"0 ₫"}},null,"Tổng",{"$f":"SUBTOTAL(109,Bảng12[Chi phí Theo kế hoạch])","v":{"v":0,"d":"$0"}},{"$f":"SUBTOTAL(109,Bảng12[Chi phí Thực tế])","v":{"v":0,"d":"$0"}},{"$f":"SUBTOTAL(109,Bảng12[Chênh lệch])","v":{"v":0,"d":"$0"}}]
[null,"Tóc/móng",null,null,{"$f":"Bảng7[[#This Row],[Chi phí Theo kế hoạch]]-Bảng7[[#This Row],[Chi phí Thực tế]]","v":{"v":0,"d":"0 ₫"}}]
[null,"Trang phục",null,null,{"$f":"Bảng7[[#This Row],[Chi phí Theo kế hoạch]]-Bảng7[[#This Row],[Chi phí Thực tế]]","v":{"v":0,"d":"0 ₫"}},null,"TỔNG CHI PHÍ DỰ KIẾN",null,null,{"$f":"SUM(C23,C33,C40,C46,C54,C64,H22,H31,H38,H44,H50,H57)","v":{"v":2060,"d":"2,060 ₫"}}]
[null,"Giặt khô",null,null,{"$f":"Bảng7[[#This Row],[Chi phí Theo kế hoạch]]-Bảng7[[#This Row],[Chi phí Thực tế]]","v":{"v":0,"d":"0 ₫"}}]
[null,"Phòng tập",null,null,{"$f":"Bảng7[[#This Row],[Chi phí Theo kế hoạch]]-Bảng7[[#This Row],[Chi phí Thực tế]]","v":{"v":0,"d":"0 ₫"}},null,"TỔNG CHI PHÍ THỰC TẾ",null,null,{"$f":"SUM(D23,D33,D40,D46,D54,D64,I22,I31,I38,I44,I50,I57)","v":{"v":2040,"d":"2,040 ₫"}}]
[null,"Thuế hoặc phí tổ chức",null,null,{"$f":"Bảng7[[#This Row],[Chi phí Theo kế hoạch]]-Bảng7[[#This Row],[Chi phí Thực tế]]","v":{"v":0,"d":"0 ₫"}}]
[null,"Khác",null,null,{"$f":"Bảng7[[#This Row],[Chi phí Theo kế hoạch]]-Bảng7[[#This Row],[Chi phí Thực tế]]","v":{"v":0,"d":"0 ₫"}},null,"TỔNG CHÊNH LỆCH",null,null,{"$f":"SUM(E23,E33,E40,E46,E54,E64,J22,J31,J38,J44,J50,J57)","v":{"v":20,"d":"20 ₫"}}]
[null,"Tổng",{"$f":"SUBTOTAL(109,Bảng7[Chi phí Theo kế hoạch])","v":{"v":0,"d":"0 ₫"}},{"$f":"SUBTOTAL(109,Bảng7[Chi phí Thực tế])","v":{"v":0,"d":"0 ₫"}},{"$f":"SUBTOTAL(109,Bảng7[Chênh lệch])","v":{"v":0,"d":"0 ₫"}}]